bitfinex/quotes_SOLUSD_20230101
["timestamp","ask_amount","ask_price","bid_price","bid_amount"]
[1672614845973,163.7813,10.034,10.025,101.18730786]
[1672614848925,163.7813,10.034,10.026,15.80730786]
[1672614852289,163.7813,10.034,10.027,55.33]
[1672614852501,163.7813,10.034,10.028,30.0]
[1672614854197,163.7813,10.034,10.028,45.80730786]
[1672614855027,74.81,10.04,10.03,30.0]
[1672614855246,74.79,10.043,10.032,30.0]
[1672614855680,30.0,10.042,10.032,30.0]
[1672614855889,74.81,10.041,10.032,144.2429]
[1672614856714,74.81,10.041,10.032,114.2429]
[1672614858818,74.81,10.041,10.033,85.08]
[1672614859037,265.6807,10.044,10.033,85.08]
[1672614859365,265.6807,10.044,10.033,194.0987]
[1672614859768,235.6807,10.044,10.033,209.90600786]
[1672614859983,160.9007,10.044,10.033,209.90600786]
[1672614860388,23.4128,10.043,10.033,209.90600786]
[1672614863232,23.4128,10.043,10.033,636.43752512]
[1672614864076,53.4128,10.043,10.033,636.43752512]
[1672614864289,23.4128,10.043,10.033,636.43752512]
[1672614868184,46.6232,10.043,10.033,636.43752512]
[1672614869450,74.74,10.05,10.043,0.06553847]
[1672614869654,104.72,10.052,10.043,0.06553847]
[1672614870184,104.72,10.052,10.043,0.00553847]
[1672614870377,30.0,10.05,10.043,0.00553847]
[1672614870698,30.0,10.048,10.043,0.00553847]
[1672614870921,30.0,10.046,10.036,118.0228]
[1672614871134,30.0,10.044,10.036,118.0228]
[1672614871339,30.0,10.042,10.036,118.0228]
[1672614871676,30.0,10.042,10.033,47.2172]
[1672614871883,30.0,10.042,10.031,84.51]
[1672614872077,30.0,10.042,10.032,20.0]
[1672614877689,30.0,10.042,10.032,50.0]
[1672614877902,30.0,10.042,10.033,55.04]
[1672614878849,30.0,10.043,10.033,55.04]
[1672614881928,146.87347627,10.044,10.033,354.94]
[1672614882107,77.9569,10.044,10.034,30.0]
[1672614882318,77.9569,10.044,10.035,54.9]
[1672614885151,77.9569,10.044,10.034,119.3956]
[1672614885368,30.0,10.042,10.034,119.3956]
[1672614885707,74.81,10.041,10.034,119.3956]
[1672614885929,30.0,10.04,10.034,119.3956]
[1672614886077,30.0,10.04,10.029,54.94]
[1672614886078,30.0,10.04,10.026,54.95]
[1672614886284,207.1447,10.039,10.026,54.95]
[1672614886605,30.0,10.038,10.025,84.96]
[1672614886820,189.6863,10.038,10.025,196.9392]
[1672614887038,189.6863,10.038,10.025,212.74650786]
[1672614887772,30.0,10.036,10.025,212.74650786]
[1672614888935,184.7308,10.036,10.026,30.0]
[1672614889195,184.7308,10.036,10.027,55.26]
[1672614889469,184.7308,10.036,10.027,71.06730786]
[1672614892809,184.7308,10.036,10.027,15.80730786]
[1672614893664,184.7308,10.036,10.028,55.27]
[1672614893874,184.7308,10.036,10.027,71.11730786]
[1672614894275,184.7308,10.036,10.027,55.31]
[1672614894607,181.8047,10.036,10.025,111.9792]
[1672614894927,74.85,10.035,10.025,111.9792]
[1672614895162,30.0,10.034,10.025,111.9792]
[1672614896189,121.6138,10.035,10.026,15.80730786]
[1672614896397,46.7638,10.035,10.026,15.80730786]
[1672614897329,30.0,10.034,10.026,15.80730786]
[1672614898495,30.0,10.034,10.025,111.9792]
[1672614900394,156.3258,10.035,10.025,111.9792]
[1672614900790,22.8374,10.034,10.025,411.8792]
[1672614900915,22.8374,10.034,10.026,30.0]
[1672614902586,104.8,10.042,10.028,299.9]
[1672614902786,74.8,10.042,10.029,121.5544]
[1672614903201,30.0,10.041,10.029,121.5544]
[1672614903428,30.0,10.041,10.03,140.9517]
[1672614903630,30.0,10.041,10.031,75.08]
[1672614904036,30.0,10.041,10.031,193.2291]
[1672614911723,30.0,10.039,10.024,299.9]
[1672614911929,94.83,10.038,10.027,15.80730786]
[1672614912148,66.5538,10.038,10.027,15.80730786]
[1672614912352,66.5538,10.038,10.028,13.58]
[1672614912550,30.0,10.037,10.028,13.58]
[1672614912764,30.0,10.037,10.024,143.3967]
[1672614912765,104.84,10.037,10.024,143.3967]
[1672614912973,30.0,10.035,10.024,143.3967]
[1672614913187,30.0,10.033,10.024,143.3967]
[1672614913406,30.0,10.033,10.024,118.5448]
[1672614914560,30.0,10.031,10.024,118.5448]
[1672614914773,30.0,10.031,10.022,13.59]
[1672614916966,30.0,10.031,10.021,188.8985]
[1672614917170,30.0,10.031,10.022,20.0]
[1672614917381,30.0,10.031,10.023,55.54]
[1672614917592,30.0,10.031,10.022,190.9589]
[1672614918014,30.0,10.031,10.009,73.87040009]
[1672614918237,228.97735216,10.03,10.013,115.4089]
[1672614918441,193.3301,10.029,10.014,30.0]
[1672614918655,94.9,10.028,10.016,15.80730786]
[1672614918975,30.0,10.027,10.017,55.56]
[1672614919188,30.0,10.027,10.015,55.58]
[1672614919395,193.3301,10.027,10.015,55.58]
[1672614920762,193.3301,10.027,10.015,174.0495]
[1672614923295,30.0,10.025,10.015,118.4695]
[1672614924663,30.0,10.025,10.016,56.0]
[1672614924979,30.0,10.025,10.015,174.4795]
[1672614925701,77.575,10.025,10.015,174.4795]
[1672614928449,47.575,10.025,10.015,174.4795]
[1672614929282,77.575,10.025,10.015,174.4795]
[1672614933171,47.575,10.025,10.015,474.3795]
[1672614933387,47.575,10.025,10.017,30.0]
[1672614933705,47.575,10.025,10.017,85.91]
[1672614935278,47.575,10.025,10.017,55.91]
[1672614939469,77.575,10.025,10.017,55.91]
[1672614941461,30.0,10.024,10.015,118.4695]
[1672614941673,74.94,10.023,10.015,118.4695]
[1672614941883,30.0,10.022,10.015,118.4695]
[1672614942423,30.0,10.02,10.015,118.4695]
[1672614942634,30.0,10.02,10.011,1853.67587004]
[1672614942950,30.0,10.02,10.012,20.0]
[1672614948722,48.8147,10.024,10.013,30.0]
[1672614949572,78.8147,10.024,10.013,224.2472]
[1672614949785,48.8147,10.024,10.013,224.2472]
[1672614949977,48.8147,10.024,10.013,240.05450786]
[1672614950490,48.8147,10.024,10.013,539.95450786]
[1672614954709,48.8147,10.024,10.013,240.05450786]
[1672614954916,30.0,10.023,10.013,224.2472]
[1672614955769,30.0,10.023,10.013,194.2472]
[1672614956720,30.0,10.023,10.013,224.2472]
[1672614957119,153.7447,10.024,10.013,224.2472]
[1672614957757,153.7447,10.024,10.014,30.0]
[1672614958288,30.0,10.023,10.013,194.2472]
[1672614959016,30.0,10.023,10.013,137.9972]
[1672614959220,74.95,10.022,10.013,137.9972]
[1672614959766,74.94,10.023,10.013,137.9972]
[1672614959969,74.94,10.023,10.014,30.0]
[1672614962165,123.7447,10.024,10.014,30.0]
[1672614962707,123.7447,10.024,10.014,138.8369]
[1672614962917,48.8147,10.024,10.014,194.8569]
[1672614963107,48.8147,10.024,10.014,210.66420786]
[1672614963747,74.89,10.03,10.017,73.87040009]
[1672614963958,74.87,10.032,10.018,375.89]
[1672614964280,74.87,10.032,10.019,30.0]
[1672614964472,74.87,10.032,10.021,30.0]
[1672614964682,74.87,10.032,10.022,75.97]
[1672614965103,30.0,10.031,10.022,20.0]
[1672614965319,30.0,10.031,10.022,136.9664]
[1672614966159,30.0,10.031,10.023,17.13831198]
[1672614966578,74.87,10.032,10.023,17.13831198]
[1672614966789,149.8676,10.034,10.023,72.73831198]
[1672614967003,149.8676,10.034,10.023,192.04641198]
[1672614969013,149.8676,10.034,10.023,136.44641198]
[1672614969409,149.8676,10.034,10.023,191.95641198]
[1672614970046,30.0,10.031,10.023,136.44641198]
[1672614979616,20.0,10.03,10.023,136.44641198]
[1672614979825,20.0,10.03,10.01,37.3182678]
[1672614979826,119.3081,10.021,10.013,55.62]
[1672614980054,119.3081,10.021,10.013,175.5506]
[1672614980266,119.3081,10.021,10.013,119.9306]
[1672614980875,30.0,10.02,10.013,119.9306]
[1672614983621,119.3081,10.021,10.013,119.9306]
[1672614984030,74.96,10.02,10.011,1832.09587004]
[1672614984241,30.0,10.018,10.014,15.83860325]
[1672614984459,30.0,10.016,10.005,172.9804]
[1672614984673,30.0,10.014,10.005,116.8204]
[1672614987830,47.0732,10.016,10.006,86.15]
[1672614988142,47.0732,10.016,10.007,45.80730786]
[1672614990666,47.0732,10.016,10.007,30.0]
[1672614991598,47.0732,10.016,10.007,45.80730786]
[1672614992141,47.0732,10.016,10.008,14.60450398]
[1672614995707,47.0732,10.016,10.008,71.02450398]
[1672614996126,47.0732,10.016,10.008,14.60450398]
[1672614998128,119.3081,10.021,10.01,329.9]
[1672614998344,119.3081,10.021,10.011,376.33]
[1672614998565,119.3081,10.021,10.012,30.0]
[1672614998759,119.3081,10.021,10.014,30.0]
[1672614998960,119.3081,10.021,10.015,55.96]
[1672614999191,119.3081,10.021,10.016,30.0]
[1672615002455,119.3081,10.021,10.015,55.96]
[1672615002862,119.3081,10.021,10.014,57.2]
[1672615003071,119.3081,10.021,10.017,14.47586601]
[1672615003289,119.3081,10.021,10.017,0.00586601]
[1672615003605,30.0,10.02,10.017,0.00586601]
[1672615004319,30.0,10.02,10.011,149.93673268]
[1672615004533,194.2681,10.021,10.012,30.0]
[1672615004736,119.3081,10.021,10.012,30.0]
[1672615004949,119.3081,10.021,10.011,240.17673268]
[1672615005203,30.0,10.02,10.011,240.17673268]
[1672615005390,30.0,10.02,10.011,210.17673268]
[1672615005794,119.3081,10.021,10.012,30.0]
[1672615006216,119.3081,10.021,10.011,240.17673268]
[1672615006747,30.0,10.02,10.011,240.17673268]
[1672615007194,30.0,10.02,10.011,210.17673268]
[1672615008439,30.0,10.02,10.011,149.93673268]
[1672615014966,30.0,10.022,10.011,149.93673268]
[1672615015148,30.0,10.022,10.012,56.25]
[1672615015678,30.0,10.022,10.012,86.25]
[1672615015888,30.0,10.022,10.012,194.7577]
[1672615016099,30.0,10.022,10.013,13.32717656]
[1672615024532,10.0,10.022,10.013,13.32717656]
[1672615024727,48.4086,10.024,10.015,30.0]
[1672615024928,164.1426,10.024,10.014,86.24]
[1672615025143,164.1426,10.024,10.014,99.55288631]
[1672615025350,30.0,10.023,10.014,13.31288631]
[1672615025577,30.0,10.023,10.014,124.55518631]
[1672615034428,30.0,10.023,10.014,13.31288631]
[1672615034429,89.03309802,10.022,10.014,13.31288631]
[1672615034634,91.78055214,10.012,10.007,694.61079993]
[1672615035271,30.0,10.011,10.007,694.61079993]
[1672615035702,91.78055214,10.012,10.007,694.61079993]
[1672615039065,91.78055214,10.012,10.008,13.42978934]
[1672615043255,91.78055214,10.012,10.005,117.5908]
[1672615044107,91.78055214,10.012,10.006,16.83016314]
[1672615048937,91.78055214,10.012,10.006,46.83016314]
[1672615049456,91.78055214,10.012,10.006,103.49016314]
[1672615050089,91.78055214,10.012,10.006,16.83016314]
[1672615050713,91.78055214,10.012,10.006,46.83016314]
[1672615051340,91.78055214,10.012,10.008,30.0]
[1672615052196,91.78055214,10.012,10.009,16.76577988]
[1672615059427,5.214e-05,10.012,10.011,30.0]
[1672615059657,5.214e-05,10.012,10.011,160.9161]
[1672615060048,5.214e-05,10.012,10.011,174.29440331]
[1672615065321,5.214e-05,10.012,10.011,144.29440331]
[1672615067412,30.0,10.019,10.011,144.29440331]
[1672615067624,30.0,10.019,10.012,20.0]
[1672615068026,30.0,10.019,10.012,36.7014352]
[1672615073308,30.0,10.019,10.012,16.7014352]
[1672615073504,74.98,10.018,10.012,16.7014352]
[1672615074039,89.06309802,10.018,10.012,16.7014352]
[1672615074251,30.0,10.017,10.012,16.7014352]
[1672615074464,30.0,10.015,10.012,16.7014352]
[1672615074666,75.01,10.014,10.012,16.7014352]
[1672615074866,30.0,10.013,10.012,16.7014352]
[1672615075078,30.0,10.013,10.007,69.96114816]
[1672615079074,30.0,10.013,10.007,73.40869776]
[1672615082773,30.0,10.013,10.007,16.80869776]
[1672615083178,30.0,10.013,10.005,129.01445821]
[1672615083716,75.02,10.012,10.005,129.01445821]
[1672615084129,30.0,10.011,10.005,129.01445821]
[1672615084341,30.0,10.011,10.005,13.44695821]
[1672615086023,75.04,10.01,10.005,13.44695821]
[1672615086238,30.0,10.009,10.005,13.44695821]
[1672615087070,30.0,10.009,10.003,131.11570624]
[1672615087287,30.0,10.009,10.003,13.48130624]
[1672615089602,30.0,10.011,10.003,13.48130624]
[1672615101375,30.0,10.009,10.003,13.48130624]
[1672615107786,20.0,10.008,10.003,13.48130624]
[1672615107998,30.0,10.007,10.003,13.48130624]
[1672615109243,30.0,10.007,9.9932,75.16]
[1672615109568,30.0,10.005,9.994,166.2274]
[1672615109784,195.0496,10.005,9.9941,216.9921]
[1672615110406,195.0496,10.005,9.9942,141.8321]
[1672615110616,195.0496,10.005,9.9943,75.16]
[1672615110933,165.0496,10.005,9.9944,40.0]
[1672615111132,165.0496,10.005,9.9945,75.15]
[1672615111338,165.0496,10.005,9.9946,40.0]
[1672615111547,165.0496,10.005,9.9948,40.0]
[1672615111759,165.0496,10.005,9.995,40.0]
[1672615111969,165.0496,10.005,9.9951,75.15]
[1672615112195,165.0496,10.005,9.9952,40.0]
[1672615112389,165.0496,10.005,9.9954,40.0]
[1672615112598,165.0496,10.005,9.9956,40.0]
[1672615112807,165.0496,10.005,9.9958,40.0]
[1672615113020,165.0496,10.005,9.9959,75.14]
[1672615113246,165.0496,10.005,9.996,40.0]
[1672615113461,165.0496,10.005,9.9962,40.0]
[1672615113658,165.0496,10.005,9.9963,75.14]
[1672615113878,165.0496,10.005,9.9964,40.0]
[1672615114072,165.0496,10.005,9.9966,40.0]
[1672615114285,165.0496,10.005,9.9968,40.0]
[1672615114493,165.0496,10.005,9.9969,75.14]
[1672615114723,165.0496,10.005,9.9961,75.14]
[1672615114934,165.0496,10.005,9.9962,40.0]
[1672615115147,165.0496,10.005,9.9963,75.14]
[1672615115338,165.0496,10.005,9.9964,40.0]
[1672615115549,165.0496,10.005,9.9966,40.0]
[1672615115758,165.0496,10.005,9.9967,75.14]
[1672615115965,165.0496,10.005,9.9968,40.0]
[1672615116175,165.0496,10.005,9.997,40.0]
[1672615116385,118.2206,10.005,9.9972,40.0]
[1672615116595,118.2206,10.005,9.9974,40.0]
[1672615116821,118.2206,10.005,9.9975,75.13]
[1672615117431,40.0,10.007,9.9975,75.13]
[1672615117641,40.0,10.007,9.9976,40.0]
[1672615119978,40.0,10.007,9.9976,115.13]
[1672615120600,40.0,10.007,9.9976,75.13]
[1672615120913,40.0,10.007,9.9975,40.0]
[1672615121130,40.0,10.007,9.9978,40.0]
[1672615121344,40.0,10.007,9.9978,115.13]
[1672615122710,125.05,10.008,9.9978,115.13]
[1672615123023,125.05,10.008,9.9979,40.0]
[1672615123221,125.05,10.008,9.998,75.13]
[1672615123431,40.0,10.007,9.9977,11.33899432]
[1672615124165,40.0,10.007,9.9964,40.0]
[1672615124373,40.0,10.007,9.9965,75.14]
[1672615124590,40.0,10.007,9.9966,40.0]
[1672615124801,40.0,10.007,9.9968,40.0]
[1672615125126,40.0,10.007,9.997,40.0]
[1672615125326,40.0,10.007,9.9971,75.13]
[1672615126365,40.0,10.007,9.9967,75.14]
[1672615129433,40.0,10.007,9.9969,40.0]
[1672615129647,40.0,10.007,9.997,75.14]
[1672615130173,40.0,10.007,9.9971,40.0]
[1672615130376,40.0,10.007,9.9972,75.13]
[1672615130804,40.0,10.007,9.997,40.0]
[1672615131000,40.0,10.007,9.9972,40.0]
[1672615131210,40.0,10.007,9.9973,75.13]
[1672615131420,40.0,10.007,9.9974,40.0]
[1672615131739,125.05,10.008,9.9976,40.0]
[1672615131948,125.05,10.008,9.9977,75.13]
[1672615132370,95.05,10.008,9.9977,75.13]
[1672615132575,95.05,10.008,9.9978,40.0]
[1672615132786,95.05,10.008,9.998,40.0]
[1672615133001,95.05,10.008,9.9982,40.0]
[1672615133205,95.05,10.008,9.9983,75.13]
[1672615133424,95.05,10.008,9.9984,40.0]
[1672615133633,95.05,10.008,9.9986,40.0]
[1672615134777,95.05,10.008,9.9985,75.12]
[1672615134986,95.05,10.008,9.9983,75.13]
[1672615135210,40.0,10.007,9.9979,75.13]
[1672615137114,40.0,10.007,9.998,11.33469382]
[1672615137317,40.0,10.007,9.9981,75.13]
[1672615140804,64.1009,10.007,9.9981,75.13]
[1672615141098,64.1009,10.007,9.9982,11.33182695]
[1672615141418,64.1009,10.007,9.9983,75.13]
[1672615141745,64.1009,10.007,9.9982,11.33182695]
[1672615142146,139.1609,10.007,9.9982,11.33182695]
[1672615143293,139.1609,10.007,9.9955,75.15]
[1672615143500,40.0,10.005,9.9951,75.15]
[1672615143713,24.8506,10.004,9.9952,40.0]
[1672615143942,24.8506,10.004,9.9953,75.15]
[1672615144155,24.8506,10.004,9.9951,75.15]
[1672615145079,24.8506,10.004,9.9952,11.37484192]
[1672615145291,24.8506,10.004,9.9953,75.15]
[1672615145502,40.0,10.003,9.9953,74.65]
[1672615149308,40.0,10.003,9.9954,11.37197345]
[1672615168442,75.07,10.006,9.9954,11.37197345]
[1672615168656,71.83142722,10.012,9.9961,40.0]
[1672615168844,40.0,10.012,9.9971,40.0]
[1672615169066,40.0,10.012,9.998,157.6404]
[1672615169274,75.03,10.011,9.999,20.0]
[1672615169601,40.0,10.01,10.0,132.883]
[1672615169806,40.0,10.01,10.001,20.0]
[1672615171396,40.0,10.008,10.001,20.0]
[1672615173088,40.0,10.008,10.002,11.27737837]
[1672615182860,40.0,10.006,10.002,11.27737837]
[1672615183071,40.0,10.006,10.0,109.5103]
[1672615183282,40.0,10.006,9.9931,40.0]
[1672615183508,23.4771,10.005,9.9931,40.0]
[1672615183718,23.4771,10.004,9.9954,57.05326581]
[1672615184243,40.0,10.003,9.9954,68.42523926]
[1672615184648,40.0,10.003,9.9955,57.05326581]
[1672615184857,23.4771,10.004,9.9955,72.86057367]
[1672615185063,23.4771,10.004,9.9956,15.80730786]
[1672615185273,23.4771,10.004,9.9961,40.0]
[1672615185484,23.4771,10.004,9.997,20.0]
[1672615185698,23.4771,10.004,9.9971,40.0]
[1672615185908,23.4771,10.004,9.998,20.0]
[1672615186327,23.4771,10.004,9.9982,40.0]
[1672615186538,109.3148,10.005,9.9982,40.0]
[1672615186747,109.3148,10.005,9.999,20.0]
[1672615186968,109.3148,10.005,9.9991,40.0]
[1672615187185,109.3148,10.005,9.9991,72.86057367]
[1672615187376,109.3148,10.005,10.0,20.0]
[1672615187825,40.0,10.008,10.0,20.0]
[1672615190113,40.0,10.008,10.001,13.55004352]
[1672615199165,115.03,10.011,10.001,29.35735138]
[1672615199357,40.0,10.011,10.001,29.35735138]
[1672615199802,40.0,10.011,10.001,69.35735138]
[1672615199994,40.0,10.011,10.001,161.54875138]
[1672615200826,40.0,10.011,10.001,218.60201719]
[1672615201041,40.0,10.011,10.002,40.0]
[1672615201252,40.0,10.011,10.001,218.60201719]
[1672615201473,40.0,10.011,10.002,15.80730786]
[1672615202407,40.0,10.011,10.003,13.51566801]
[1672615202837,75.04,10.01,10.003,13.51566801]
[1672615203045,40.0,10.009,10.003,13.51566801]
[1672615203254,40.0,10.009,10.001,189.24466581]
[1672615204314,40.0,10.009,10.002,13.53285405]
[1672615210525,115.03,10.011,10.002,13.53285405]
[1672615215135,140.0172,10.011,10.002,13.53285405]
[1672615226713,100.0172,10.011,10.002,13.53285405]
[1672615226920,24.9872,10.011,10.002,29.34016191]
[1672615227134,24.9872,10.011,10.003,40.0]
[1672615228308,24.9872,10.011,10.004,13.49848541]
[1672615233244,24.9872,10.011,10.003,40.0]
[1672615233860,24.9872,10.011,10.003,104.37945768]
[1672615235447,24.9872,10.011,10.003,158.35727016]
[1672615236289,24.9872,10.011,10.003,536.54213681]
[1672615252078,24.9872,10.011,10.005,40.0]
[1672615252288,24.9872,10.011,10.007,40.0]
[1672615252503,24.9872,10.011,10.007,620.22267283]
[1672615253025,24.9872,10.011,10.007,579.37389053]
[1672615262384,23.5811,10.012,10.007,579.37389053]
[1672615262911,119.4417,10.013,10.007,579.37389053]
[1672615263127,119.4417,10.013,10.008,40.0]
[1672615263341,23.4921,10.015,10.008,40.0]
[1672615263539,152.0403,10.017,10.008,40.0]
[1672615265133,152.0403,10.017,10.007,579.37389053]
[1672615266909,152.0403,10.017,10.008,115.05]
[1672615267112,152.0403,10.017,10.008,75.05]
[1672615267442,152.0403,10.017,10.007,579.37389053]
[1672615267876,152.0403,10.017,10.008,75.05]
[1672615268478,175.7814,10.017,10.008,115.05]
[1672615268692,175.7814,10.017,10.008,75.05]
[1672615269113,175.7814,10.017,10.007,579.37389053]
[1672615269947,175.7814,10.017,10.008,75.05]
[1672615272160,175.7814,10.017,10.007,579.37389053]
[1672615272783,175.7814,10.017,10.008,75.05]
[1672615275104,175.7814,10.017,10.008,115.05]
[1672615277204,175.7814,10.017,10.008,75.05]
[1672615279418,135.7814,10.017,10.008,115.05]
[1672615279616,135.7814,10.017,10.009,40.0]
[1672615279828,74.96,10.02,10.01,20.0]
[1672615280043,23.2088,10.02,10.012,40.0]
[1672615280361,63.2088,10.02,10.013,391.75752492]
[1672615281834,40.0,10.019,10.013,391.75752492]
[1672615296581,63.2088,10.02,10.013,391.75752492]
[1672615297741,40.0,10.019,10.013,391.75752492]
[1672615298060,97.93938123,10.011,10.001,930.25052645]
[1672615298247,97.93938123,10.011,10.001,1088.76712645]
[1672615298460,40.0,10.01,10.002,541.98892492]
[1672615298668,97.93938123,10.011,10.003,384.17748702]
[1672615298879,97.93938123,10.011,10.004,75.08]
[1672615299091,97.93938123,10.011,10.005,384.17748702]
[1672615299401,97.93938123,10.011,10.006,75.07]
[1672615299610,97.93938123,10.011,10.007,384.17748702]
[1672615304359,97.93938123,10.011,10.002,215.9807]
[1672615304565,36.68,10.01,10.002,215.9807]
[1672615312340,40.0,10.008,9.9903,40.0]
[1672615312667,115.05,10.008,9.9931,40.0]
[1672615312876,40.0,10.006,9.9931,40.0]
[1672615313082,203.5266,10.006,9.9932,380.84168248]
[1672615313299,203.5266,10.006,9.9933,40.0]
[1672615313504,203.5266,10.006,9.9935,40.0]
[1672615313824,203.5266,10.006,9.9937,40.0]
[1672615314020,203.5266,10.006,9.9939,40.0]
[1672615314232,203.5266,10.006,9.994,75.16]
[1672615314430,203.5266,10.006,9.9941,40.0]
[1672615314649,203.5266,10.006,9.9943,40.0]
[1672615314852,203.5266,10.006,9.9944,75.16]
[1672615315066,203.5266,10.006,9.9945,40.0]
[1672615315282,203.5266,10.006,9.9947,40.0]
[1672615315493,203.5266,10.006,9.9948,75.15]
[1672615315688,203.5266,10.006,9.9949,40.0]
[1672615315899,203.5266,10.006,9.9951,40.0]
[1672615316118,203.5266,10.006,9.9953,40.0]
[1672615316320,203.5266,10.006,9.9954,75.15]
[1672615316543,203.5266,10.006,9.9955,40.0]
[1672615316755,203.5266,10.006,9.9957,40.0]
[1672615316965,156.6347,10.006,9.9958,75.15]
[1672615317166,156.6347,10.006,9.9959,40.0]
[1672615317379,156.6347,10.006,9.9961,40.0]
[1672615317589,156.6347,10.006,9.9962,75.14]
[1672615317905,156.6347,10.006,9.9963,40.0]
[1672615318115,40.0,10.006,9.9965,40.0]
[1672615318332,40.0,10.006,9.9967,40.0]
[1672615318536,40.0,10.006,9.9969,40.0]
[1672615318752,40.0,10.006,9.997,75.14]
[1672615319073,40.0,10.007,9.9971,40.0]
[1672615319290,40.0,10.007,9.9973,40.0]
[1672615319499,40.0,10.007,9.9975,40.0]
[1672615319710,40.0,10.007,9.9976,75.13]
[1672615320025,40.0,10.007,9.9977,40.0]
[1672615320237,115.05,10.008,9.9979,40.0]
[1672615320428,40.0,10.008,9.998,75.13]
[1672615320646,40.0,10.008,9.9981,40.0]
[1672615320866,135.05,10.009,9.9983,40.0]
[1672615321078,135.05,10.009,9.9984,75.13]
[1672615321278,135.05,10.009,9.9984,151.81067462]
[1672615321490,135.05,10.009,9.9985,433.52290292]
[1672615321691,135.05,10.009,9.9986,40.0]
[1672615322025,135.05,10.009,9.9988,40.0]
[1672615322220,135.05,10.009,9.999,40.0]
[1672615322429,95.05,10.009,9.999,40.0]
[1672615322635,75.05,10.009,9.999,40.0]
[1672615322841,97.93938123,10.011,10.001,40.0]
[1672615323056,97.93938123,10.011,10.002,457.39460292]
[1672615323265,97.93938123,10.011,10.004,40.0]
[1672615324010,97.93938123,10.011,10.005,358.39290292]
[1672615328956,75.02,10.012,10.005,358.39290292]
[1672615329393,40.0,10.011,10.005,313.59379005]
[1672615331267,115.02,10.013,10.005,313.59379005]
[1672615332113,40.0,10.013,10.005,313.59379005]
[1672615333481,40.0,10.013,10.003,138.9917]
[1672615333685,40.0,10.013,10.004,23.9951]
[1672615335686,40.0,10.013,10.004,63.9951]
[1672615336099,40.0,10.013,10.004,23.9951]
[1672615338302,40.0,10.013,10.004,63.9951]
[1672615339056,40.0,10.013,10.004,23.9951]
[1672615342610,40.0,10.011,10.004,23.9951]
[1672615353454,40.0,10.011,10.001,75.11]
[1672615353666,40.0,10.009,10.002,279.01105395]
[1672615353861,95.05,10.008,9.9951,75.15]
[1672615354070,40.0,10.007,9.9951,75.15]
[1672615354285,24.4429,10.006,9.9952,40.0]
[1672615354497,24.4429,10.006,9.9953,75.15]
[1672615354808,24.4429,10.006,9.9954,40.0]
[1672615355019,24.4429,10.005,9.9956,40.0]
[1672615355235,24.4429,10.005,9.9957,75.15]
[1672615355433,24.4429,10.005,9.9958,40.0]
[1672615355644,24.4429,10.005,9.996,40.0]
[1672615355869,24.4429,10.005,9.9961,75.14]
[1672615356073,24.4429,10.005,9.9962,40.0]
[1672615356284,24.4429,10.005,9.9964,40.0]
[1672615356498,24.4429,10.005,9.9966,40.0]
[1672615356721,24.4429,10.005,9.9967,75.14]
[1672615356920,24.4429,10.005,9.9968,40.0]